[Event "23rd ETCC Women 2021"]
[Site "Catez"]
[Date "2021.11.12"]
[Round "1.1"]
[White "Goryachkina, Aleksandra"]
[Black "Pilsova, Karolina"]
[Result "1-0"]
[ECO "D19"]
[WhiteElo "2604"]
[BlackElo "2281"]
[Annotator "RC"]
[PlyCount "73"]
[EventDate "2021.11.08"]
[EventType "team-tourn"]
[EventCountry "SLO"]
[SourceTitle "playchess.com"]
[Source "ChessBase"]
[SourceQuality "1"]
[WhiteTeam "Russia"]
[BlackTeam "Czech Republic"]
[WhiteTeamCountry "RUS"]
[BlackTeamCountry "CZE"]
[TimeControl "40/5400+30:1800+30"]

1. Nf3 {[%emt 0:00:03]} d5 {[%emt 0:00:05]} 2. d4 {[%emt 0:00:17]} Nf6 {
[%emt 0:00:08]} 3. c4 {[%emt 0:00:14]} c6 {[%emt 0:00:06]} 4. Nc3 {[%emt 0:00:
15]} dxc4 {[%emt 0:00:08]} 5. a4 {[%emt 0:00:29]} Bf5 {[%emt 0:00:11]} 6. e3 {
[%emt 0:00:29]} e6 {[%emt 0:00:12]} 7. Bxc4 {[%emt 0:00:12]} Bb4 {[%emt 0:00:
20]} 8. O-O {[%emt 0:00:32]} Nbd7 {[%emt 0:00:26]} 9. Qe2 {[%emt 0:00:43]} O-O
{[%emt 0:00:30]} 10. e4 {[%emt 0:01:37]} Bg6 {[%emt 0:00:23]} 11. Bd3 {[%emt 0:
01:02]} Bh5 {[%emt 0:01:08]} 12. e5 {[%emt 0:01:08]} Nd5 {[%emt 0:00:18]} 13.
Nxd5 {[%emt 0:00:23]} cxd5 {[%emt 0:00:22]} 14. Qe3 {[%emt 0:00:20]} Be7 {
[%emt 0:01:25]} 15. Bd2 {[%emt 0:00:39]} Rc8 {[%emt 0:05:28]} 16. a5 {[%emt 0:
04:30]} a6 {[%emt 0:01:57]} 17. Rfb1 {[%emt 0:06:44]} Nb8 {[%emt 0:02:24]} 18.
b4 {[%emt 0:10:39]} Nc6 {[%emt 0:03:29]} 19. b5 {[%emt 0:05:15]} axb5 {[%emt 0:
09:02]} 20. Rxb5 {[%emt 0:02:05]} Rc7 {[%emt 0:07:24]} 21. Ne1 {[%emt 0:07:24]}
Qc8 {[%emt 0:08:48]} 22. Rab1 {[%emt 0:02:44]} Bg6 {[%emt 0:09:19]} 23. Bxg6 {
[%emt 0:01:32]} fxg6 {[%emt 0:00:24]} 24. Nd3 {[%emt 0:06:13]} Rf5 {[%emt 0:06:
31]} 25. Rb6 {[%emt 0:04:21]} Bg5 {[%emt 0:10:53]} 26. Qe1 {[%emt 0:05:33]} Bd8
{[%emt 0:12:36]} 27. Be3 {[%emt 0:02:08]} Rcf7 {[%emt 0:04:07]} 28. R6b5 {
[%emt 0:01:23]} Qa8 {[%emt 0:03:17]} 29. Ra1 {[%emt 0:03:05]} Na7 {[%emt 0:05:
06]} 30. Rb2 {[%emt 0:03:08]} Nc6 {[%emt 0:01:07]} 31. Rba2 {[%emt 0:03:35]}
Be7 {[%emt 0:03:19]} 32. Qb1 {[%emt 0:01:21]} Bf8 {[%emt 0:02:05]} 33. a6 {
[%emt 0:05:10]} Qa7 {[%emt 0:03:03]} 34. Rc2 {[%emt 0:05:29]} Nb8 {[%emt 0:00:
49]} 35. axb7 {[%emt 0:00:27]} Rxb7 {[%emt 0:00:20]} 36. Qc1 {[%emt 0:00:59]}
Qb6 {[%emt 0:00:23]} 37. Rb2 {[%emt 0:00:30]} 1-0

[Event "23rd ETCC Women 2021"]
[Site "Catez"]
[Date "2021.11.12"]
[Round "1.2"]
[White "Miturova, Magdalena"]
[Black "Lagno, Kateryna"]
[Result "0-1"]
[ECO "C48"]
[WhiteElo "2248"]
[BlackElo "2550"]
[Annotator "ChessBase"]
[PlyCount "102"]
[EventDate "2021.11.08"]
[EventType "team-tourn"]
[EventCountry "SLO"]
[SourceTitle "playchess.com"]
[Source "ChessBase"]
[SourceQuality "1"]
[WhiteTeam "Czech Republic"]
[BlackTeam "Russia"]
[WhiteTeamCountry "CZE"]
[BlackTeamCountry "RUS"]
[TimeControl "40/5400+30:1800+30"]

1. e4 {[%emt 0:00:04]} e5 {[%emt 0:00:07]} 2. Nf3 {[%emt 0:00:06]} Nc6 {
[%emt 0:00:08]} 3. Nc3 {[%emt 0:00:09]} Nf6 {[%emt 0:00:10]} 4. Bb5 {[%emt 0:
00:07]} Bd6 {[%emt 0:00:31]} 5. d3 {[%emt 0:00:26]} O-O {[%emt 0:00:13]} 6. O-O
{[%emt 0:07:19]} h6 {[%emt 0:00:37]} 7. Ne2 {[%emt 0:00:21]} Re8 {[%emt 0:02:
49]} 8. Ng3 {[%emt 0:04:34]} Bf8 {[%emt 0:00:28]} 9. h3 {[%emt 0:02:55]} a6 {
[%emt 0:04:34]} 10. Ba4 {[%emt 0:00:19]} b5 {[%emt 0:03:13]} 11. Bb3 {[%emt 0:
00:05]} Na5 {[%emt 0:00:39]} 12. Nh2 {[%emt 0:07:05]} Nxb3 {[%emt 0:03:11]} 13.
axb3 {[%emt 0:01:43]} d5 {[%emt 0:00:23]} 14. Qf3 {[%emt 0:04:03]} Bb7 {
[%emt 0:14:25]} 15. Ng4 {[%emt 0:08:54]} Nxg4 {[%emt 0:02:37]} 16. Qxg4 {
[%emt 0:00:14]} Re6 {[%emt 0:19:08]} 17. Re1 {[%emt 0:04:51]} a5 {[%emt 0:13:
19]} 18. Nf5 {[%emt 0:16:16]} Kh7 {[%emt 0:01:28]} 19. h4 {[%emt 0:07:14]} g6 {
[%emt 0:03:15]} 20. Ng3 {[%emt 0:05:14]} dxe4 {[%emt 0:05:17]} 21. dxe4 {
[%emt 0:02:53]} h5 {[%emt 0:00:24]} 22. Qf3 {[%emt 0:05:39]} Qf6 {[%emt 0:00:
16]} 23. Qxf6 {[%emt 0:03:59]} Rxf6 {[%emt 0:00:09]} 24. Bg5 {[%emt 0:03:34]}
Rc6 {[%emt 0:00:48]} 25. Re2 {[%emt 0:02:53]} a4 {[%emt 0:00:46]} 26. bxa4 {
[%emt 0:00:53]} Rxa4 {[%emt 0:05:31]} 27. Rxa4 {[%emt 0:05:13]} bxa4 {[%emt 0:
00:04]} 28. Rd2 {[%emt 0:05:05]} Bd6 {[%emt 0:00:53]} 29. Kh2 {[%emt 0:02:10]}
Rb6 {[%emt 0:01:01]} 30. c3 {[%emt 0:00:09]} Kg7 {[%emt 0:03:36]} 31. Be3 {
[%emt 0:00:26]} Rb3 {[%emt 0:00:22]} 32. c4 {[%emt 0:00:53]} Bb4 {[%emt 0:00:
23]} 33. Rc2 {[%emt 0:00:12]} Be7 {[%emt 0:01:36]} 34. Bg5 {[%emt 0:00:09]}
Bxg5 {[%emt 0:00:45]} 35. hxg5 {[%emt 0:00:02]} h4 {[%emt 0:00:04]} 36. Nf1 {
[%emt 0:01:22]} Bxe4 {[%emt 0:00:07]} 37. Rd2 {[%emt 0:00:30]} Bc6 {[%emt 0:08:
12]} 38. Ne3 {[%emt 0:00:20]} f6 {[%emt 0:02:01]} 39. gxf6+ {[%emt 0:00:35]}
Kxf6 {[%emt 0:00:03]} 40. Re2 {[%emt 0:00:50]} e4 {[%emt 0:01:00]} 41. g3 {
[%emt 0:09:38]} g5 {[%emt 0:05:51]} 42. Rd2 {[%emt 0:07:08]} Rd3 {[%emt 0:01:
19]} 43. Rc2 {[%emt 0:00:55]} Kg6 {[%emt 0:05:53]} 44. Re2 {[%emt 0:01:56]} Kh5
{[%emt 0:08:56]} 45. Rc2 {[%emt 0:06:48]} Bd7 {[%emt 0:03:30]} 46. Re2 {
[%emt 0:02:46]} Bg4 {[%emt 0:06:05]} 47. Nxg4 {[%emt 0:01:27]} Kxg4 {[%emt 0:
00:02]} 48. gxh4 {[%emt 0:02:12]} Kf3 {[%emt 0:00:08]} 49. Rc2 {[%emt 0:00:16]}
gxh4 {[%emt 0:02:00]} 50. Kh3 {[%emt 0:00:18]} Rd1 {[%emt 0:00:21]} 51. Kxh4 {
[%emt 0:00:30]} Rf1 {[%emt 0:00:06]} 0-1

[Event "23rd ETCC Women 2021"]
[Site "Catez"]
[Date "2021.11.12"]
[Round "1.3"]
[White "Gunina, Valentina"]
[Black "Richterova, Natasa"]
[Result "1-0"]
[ECO "B18"]
[WhiteElo "2480"]
[BlackElo "2185"]
[Annotator "ChessBase"]
[PlyCount "115"]
[EventDate "2021.11.08"]
[EventType "team-tourn"]
[EventCountry "SLO"]
[SourceTitle "playchess.com"]
[Source "ChessBase"]
[SourceQuality "1"]
[WhiteTeam "Russia"]
[BlackTeam "Czech Republic"]
[WhiteTeamCountry "RUS"]
[BlackTeamCountry "CZE"]
[TimeControl "40/5400+30:1800+30"]

1. e4 {[%emt 0:00:10]} c6 {[%emt 0:00:08]} 2. d4 {[%emt 0:00:13]} d5 {[%emt 0:
00:05]} 3. Nc3 {[%emt 0:00:10]} dxe4 {[%emt 0:00:09]} 4. Nxe4 {[%emt 0:00:06]}
Bf5 {[%emt 0:00:07]} 5. Ng3 {[%emt 0:00:12]} Bg6 {[%emt 0:00:05]} 6. Nh3 {
[%emt 0:00:04]} Nf6 {[%emt 0:00:46]} 7. Nf4 {[%emt 0:00:41]} e5 {[%emt 0:02:33]
} 8. dxe5 {[%emt 0:00:20]} Qa5+ {[%emt 0:18:21]} 9. c3 {[%emt 0:01:18]} Qxe5+ {
[%emt 0:00:04]} 10. Be2 {[%emt 0:00:05]} Bc5 {[%emt 0:04:08]} 11. O-O {[%emt 0:
01:24]} O-O {[%emt 0:01:33]} 12. Nd3 {[%emt 0:05:59]} Bxd3 {[%emt 0:03:33]} 13.
Bxd3 {[%emt 0:01:05]} Re8 {[%emt 0:02:23]} 14. Qf3 {[%emt 0:05:08]} Nbd7 {
[%emt 0:01:21]} 15. Nf5 {[%emt 0:03:21]} Qd5 {[%emt 0:13:28]} 16. Qg3 {[%emt 0:
02:04]} Nh5 {[%emt 0:05:02]} 17. Qh3 {[%emt 0:00:35]} g6 {[%emt 0:15:22]} 18.
Bg5 {[%emt 0:03:34]} gxf5 {[%emt 0:16:47]} 19. Rad1 {[%emt 0:04:05]} Ng7 {
[%emt 0:04:56]} 20. Bc2 {[%emt 0:00:26]} Qe6 {[%emt 0:07:10]} 21. Bb3 {[%emt 0:
04:35]} Qg6 {[%emt 0:02:03]} 22. Rxd7 {[%emt 0:00:17]} Qxg5 {[%emt 0:00:45]}
23. Bxf7+ {[%emt 0:00:06]} Kh8 {[%emt 0:00:04]} 24. Bxe8 {[%emt 0:00:05]} Rxe8
{[%emt 0:00:04]} 25. Qf3 {[%emt 0:00:40]} Qg6 {[%emt 0:01:28]} 26. Rxb7 {
[%emt 0:00:58]} Bb6 {[%emt 0:00:15]} 27. h3 {[%emt 0:02:33]} Nh5 {[%emt 0:00:
18]} 28. Rd1 {[%emt 0:02:14]} Nf6 {[%emt 0:00:17]} 29. Kh2 {[%emt 0:07:59]} Ne4
{[%emt 0:01:10]} 30. Rdd7 {[%emt 0:01:04]} Nf6 {[%emt 0:00:34]} 31. Rg7 {
[%emt 0:02:27]} Qxg7 {[%emt 0:00:29]} 32. Rxg7 {[%emt 0:00:05]} Kxg7 {[%emt 0:
00:05]} 33. Qxf5 {[%emt 0:00:11]} Bc7+ {[%emt 0:00:47]} 34. g3 {[%emt 0:01:48]}
Re2 {[%emt 0:00:35]} 35. c4 {[%emt 0:03:07]} Rxb2 {[%emt 0:00:32]} 36. a4 {
[%emt 0:02:26]} Re2 {[%emt 0:00:28]} 37. Kg2 {[%emt 0:00:50]} Re5 {[%emt 0:00:
29]} 38. Qc8 {[%emt 0:00:13]} Bb6 {[%emt 0:00:31]} 39. Qxc6 {[%emt 0:00:44]}
Rc5 {[%emt 0:00:11]} 40. Qe6 {[%emt 0:00:41]} Rc7 {[%emt 0:00:41]} 41. g4 {
[%emt 0:30:19]} h6 {[%emt 0:06:05]} 42. h4 {[%emt 0:00:00]} Rf7 {[%emt 0:07:13]
} 43. g5 {[%emt 0:00:00]} hxg5 {[%emt 0:01:33]} 44. hxg5 {[%emt 0:00:00]} Ng8 {
[%emt 0:00:48]} 45. f4 {[%emt 0:00:00]} Ne7 {[%emt 0:02:51]} 46. Qe5+ {[%emt 0:
00:00]} Kh7 {[%emt 0:03:23]} 47. a5 {[%emt 0:00:00]} Ng6 {[%emt 0:05:01]} 48.
Qe4 {[%emt 0:00:00]} Re7 {[%emt 0:04:57]} 49. Qb1 {[%emt 0:00:00]} Bxa5 {
[%emt 0:01:55]} 50. f5 {[%emt 0:00:00]} Rg7 {[%emt 0:01:25]} 51. fxg6+ {
[%emt 0:00:00]} Rxg6 {[%emt 0:00:07]} 52. Qb7+ {[%emt 0:00:00]} Rg7 {[%emt 0:
00:45]} 53. Qe4+ {[%emt 0:00:00]} Rg6 {[%emt 0:00:37]} 54. Kf3 {[%emt 0:00:00]}
Bd8 {[%emt 0:00:30]} 55. Kg4 {[%emt 0:00:00]} Kg7 {[%emt 0:00:25]} 56. Qd4+ {
[%emt 0:00:00]} Bf6 {[%emt 0:00:01]} 57. Qxa7+ {[%emt 0:00:00]} Kg8 {[%emt 0:
00:23]} 58. Kf5 {[%emt 0:00:00]} 1-0

[Event "23rd ETCC Women 2021"]
[Site "Catez"]
[Date "2021.11.12"]
[Round "1.4"]
[White "Nemcova, Karin"]
[Black "Kashlinskaya, Alina"]
[Result "0-1"]
[ECO "C17"]
[WhiteElo "2169"]
[BlackElo "2482"]
[Annotator "ChessBase"]
[PlyCount "72"]
[EventDate "2021.11.08"]
[EventType "team-tourn"]
[EventCountry "SLO"]
[SourceTitle "playchess.com"]
[Source "ChessBase"]
[SourceQuality "1"]
[WhiteTeam "Czech Republic"]
[BlackTeam "Russia"]
[WhiteTeamCountry "CZE"]
[BlackTeamCountry "RUS"]
[TimeControl "40/5400+30:1800+30"]

1. e4 {[%emt 0:00:02]} e6 {[%emt 0:00:10]} 2. d4 {[%emt 0:00:05]} d5 {[%emt 0:
00:09]} 3. Nc3 {[%emt 0:00:07]} Bb4 {[%emt 0:00:20]} 4. e5 {[%emt 0:00:10]} Ne7
{[%emt 0:00:21]} 5. Bd2 {[%emt 0:00:15]} c5 {[%emt 0:00:17]} 6. a3 {[%emt 0:00:
54]} Bxc3 {[%emt 0:00:18]} 7. Bxc3 {[%emt 0:00:06]} b6 {[%emt 0:00:14]} 8. Bb5+
{[%emt 0:03:17]} Bd7 {[%emt 0:01:24]} 9. Bd3 {[%emt 0:01:04]} Nbc6 {[%emt 0:00:
28]} 10. Nf3 {[%emt 0:00:24]} Qb8 {[%emt 0:00:48]} 11. O-O {[%emt 0:04:03]}
cxd4 {[%emt 0:01:34]} 12. Nxd4 {[%emt 0:01:06]} Nxe5 {[%emt 0:01:19]} 13. f4 {
[%emt 0:05:09]} Nxd3 {[%emt 0:01:26]} 14. cxd3 {[%emt 0:00:47]} O-O {[%emt 0:
08:17]} 15. Qg4 {[%emt 0:02:07]} Ng6 {[%emt 0:08:54]} 16. h4 {[%emt 0:02:30]}
Qd8 {[%emt 0:27:07]} 17. h5 {[%emt 0:13:16]} Qh4 {[%emt 0:13:10]} 18. Qf3 {
[%emt 0:01:40]} Nxf4 {[%emt 0:06:29]} 19. g3 {[%emt 0:01:46]} Nh3+ {[%emt 0:01:
03]} 20. Kg2 {[%emt 0:00:29]} Qg5 {[%emt 0:00:55]} 21. Kxh3 {[%emt 0:02:14]}
e5+ {[%emt 0:00:23]} 22. Nf5 {[%emt 0:00:13]} g6 {[%emt 0:01:10]} 23. g4 {
[%emt 0:00:30]} gxf5 {[%emt 0:01:42]} 24. gxf5 {[%emt 0:00:26]} Kh8 {[%emt 0:
00:50]} 25. Bxe5+ {[%emt 0:01:49]} f6 {[%emt 0:00:08]} 26. Bg3 {[%emt 0:04:34]}
Rg8 {[%emt 0:01:19]} 27. Rae1 {[%emt 0:09:01]} Rac8 {[%emt 0:02:38]} 28. Re2 {
[%emt 0:06:01]} Bxf5+ {[%emt 0:05:58]} 29. Kh2 {[%emt 0:00:09]} Bxd3 {[%emt 0:
02:02]} 30. Qxd3 {[%emt 0:06:25]} Qxh5+ {[%emt 0:00:07]} 31. Kg2 {[%emt 0:07:
34]} Rxg3+ {[%emt 0:00:47]} 32. Qxg3 {[%emt 0:00:22]} Qxe2+ {[%emt 0:00:08]}
33. Rf2 {[%emt 0:00:05]} Qe4+ {[%emt 0:00:15]} 34. Kh3 {[%emt 0:00:10]} Rg8 {
[%emt 0:04:34]} 35. Qf4 {[%emt 0:03:17]} Qxf4 {[%emt 0:01:29]} 36. Rxf4 {
[%emt 0:00:06]} Kg7 {[%emt 0:00:18]} 0-1

[Event "23rd ETCC Women 2021"]
[Site "Catez"]
[Date "2021.11.12"]
[Round "1.5"]
[White "Hagarova, Zuzana"]
[Black "Javakhishvili, Lela"]
[Result "0-1"]
[ECO "B43"]
[WhiteElo "2292"]
[BlackElo "2446"]
[Annotator "NA"]
[PlyCount "64"]
[EventDate "2021.11.08"]
[EventType "team-tourn"]
[EventCountry "SLO"]
[SourceTitle "playchess.com"]
[Source "ChessBase"]
[SourceQuality "1"]
[WhiteTeam "Slovakia"]
[BlackTeam "Georgia"]
[WhiteTeamCountry "SVK"]
[BlackTeamCountry "GEO"]
[TimeControl "40/5400+30:1800+30"]

1. e4 {[%emt 0:00:06]} c5 {[%emt 0:00:09]} 2. Nf3 {[%emt 0:00:06]} e6 {[%emt 0:
00:09]} 3. d4 {[%emt 0:00:06]} cxd4 {[%emt 0:00:06]} 4. Nxd4 {[%emt 0:00:05]}
a6 {[%emt 0:00:05]} 5. Nc3 {[%emt 0:00:49]} b5 {[%emt 0:00:12]} 6. Bd3 {
[%emt 0:01:39]} Qb6 {[%emt 0:00:43]} 7. Be3 {[%emt 0:03:50]} Bc5 {[%emt 0:00:
21]} 8. Be2 {[%emt 0:01:05]} Nc6 {[%emt 0:01:12]} 9. Nxc6 {[%emt 0:01:15]} Qxc6
{[%emt 0:01:23]} 10. Bxc5 {[%emt 0:05:39]} Qxc5 {[%emt 0:00:03]} 11. O-O {
[%emt 0:14:48]} Ne7 {[%emt 0:01:18]} 12. Kh1 {[%emt 0:05:47]} Bb7 {[%emt 0:03:
49]} 13. Bd3 {[%emt 0:09:11]} b4 {[%emt 0:04:09]} 14. Ne2 {[%emt 0:05:55]} O-O
{[%emt 0:09:52]} 15. Ng3 {[%emt 0:04:05]} a5 {[%emt 0:09:48]} 16. f4 {[%emt 0:
03:04]} f5 {[%emt 0:11:02]} 17. a3 {[%emt 0:11:45]} Bc6 {[%emt 0:10:35]} 18.
Qe2 {[%emt 0:06:44]} bxa3 {[%emt 0:02:57]} 19. Rxa3 {[%emt 0:00:58]} Rab8 {
[%emt 0:00:37]} 20. Rc3 {[%emt 0:09:08]} Qd6 {[%emt 0:06:54]} 21. exf5 {
[%emt 0:02:19]} Nxf5 {[%emt 0:11:27]} 22. Nxf5 {[%emt 0:07:17]} exf5 {[%emt 0:
00:08]} 23. Bc4+ {[%emt 0:00:15]} Kh8 {[%emt 0:00:03]} 24. Rd3 {[%emt 0:00:47]}
Qf6 {[%emt 0:02:49]} 25. c3 {[%emt 0:02:28]} Rfe8 {[%emt 0:01:31]} 26. Qd2 {
[%emt 0:02:06]} Be4 {[%emt 0:05:34]} 27. Rd6 {[%emt 0:00:52]} Rxb2 {[%emt 0:01:
04]} 28. Qxb2 {[%emt 0:00:52]} Qxd6 {[%emt 0:00:03]} 29. Qb5 {[%emt 0:01:25]}
Qd2 {[%emt 0:01:19]} 30. Rg1 {[%emt 0:00:29]} Bc6 {[%emt 0:00:42]} 31. Qb1 {
[%emt 0:00:32]} a4 {[%emt 0:02:12]} 32. h3 {[%emt 0:00:32]} Bxg2+ {[%emt 0:02:
21]} 0-1

[Event "23rd ETCC Women 2021"]
[Site "Catez"]
[Date "2021.11.12"]
[Round "1.6"]
[White "Arabidze, Meri"]
[Black "Sucikova, Svetlana"]
[Result "1-0"]
[ECO "D52"]
[WhiteElo "2441"]
[BlackElo "2197"]
[Annotator "NA"]
[PlyCount "79"]
[EventDate "2021.11.08"]
[EventType "team-tourn"]
[EventCountry "SLO"]
[SourceTitle "playchess.com"]
[Source "ChessBase"]
[SourceQuality "1"]
[WhiteTeam "Georgia"]
[BlackTeam "Slovakia"]
[WhiteTeamCountry "GEO"]
[BlackTeamCountry "SVK"]
[TimeControl "40/5400+30:1800+30"]

1. d4 {[%emt 0:00:04]} d5 {[%emt 0:01:15]} 2. c4 {[%emt 0:00:11]} c6 {[%emt 0:
00:40]} 3. Nf3 {[%emt 0:00:09]} e6 {[%emt 0:00:44]} 4. Qc2 {[%emt 0:00:35]} Nf6
{[%emt 0:01:03]} 5. Bg5 {[%emt 0:00:22]} Nbd7 {[%emt 0:02:00]} 6. e3 {[%emt 0:
01:28]} Bd6 {[%emt 0:03:35]} 7. Nc3 {[%emt 0:02:24]} O-O {[%emt 0:03:05]} 8. a3
{[%emt 0:03:42]} Re8 {[%emt 0:06:31]} 9. Bd3 {[%emt 0:06:55]} h6 {[%emt 0:04:
31]} 10. Bh4 {[%emt 0:00:49]} a6 {[%emt 0:03:38]} 11. O-O {[%emt 0:04:44]} dxc4
{[%emt 0:18:59]} 12. Bxc4 {[%emt 0:00:12]} Qc7 {[%emt 0:00:15]} 13. Ba2 {
[%emt 0:08:05]} c5 {[%emt 0:07:18]} 14. dxc5 {[%emt 0:07:47]} Qxc5 {[%emt 0:02:
22]} 15. Rfd1 {[%emt 0:00:24]} b5 {[%emt 0:02:16]} 16. Qd3 {[%emt 0:02:51]} Be7
{[%emt 0:04:17]} 17. Ne4 {[%emt 0:04:49]} Nxe4 {[%emt 0:06:05]} 18. Qxe4 {
[%emt 0:01:00]} Qa7 {[%emt 0:00:25]} 19. Bxe7 {[%emt 0:12:57]} Rxe7 {[%emt 0:
01:08]} 20. Ne5 {[%emt 0:12:43]} Bb7 {[%emt 0:10:55]} 21. Qh4 {[%emt 0:01:23]}
Qc5 {[%emt 0:09:10]} 22. Rac1 {[%emt 0:25:32]} Qxe5 {[%emt 0:06:28]} 23. Qxe7 {
[%emt 0:00:01]} Qe4 {[%emt 0:00:39]} 24. f3 {[%emt 0:00:01]} Qxe3+ {[%emt 0:00:
22]} 25. Kh1 {[%emt 0:00:03]} Bxf3 {[%emt 0:03:22]} 26. Rf1 {[%emt 0:00:17]}
Bxg2+ {[%emt 0:00:57]} 27. Kxg2 {[%emt 0:00:01]} Qe4+ {[%emt 0:00:14]} 28. Kg3
{[%emt 0:00:27]} Ne5 {[%emt 0:01:01]} 29. Qh4 {[%emt 0:01:55]} Qe3+ {[%emt 0:
00:56]} 30. Kg2 {[%emt 0:00:05]} Qd2+ {[%emt 0:00:32]} 31. Kh1 {[%emt 0:02:01]}
Rd8 {[%emt 0:00:39]} 32. Bb1 {[%emt 0:00:41]} g5 {[%emt 0:00:27]} 33. Qe4 {
[%emt 0:00:24]} Ng6 {[%emt 0:00:26]} 34. Rc2 {[%emt 0:01:30]} Qd6 {[%emt 0:00:
31]} 35. Rcf2 {[%emt 0:00:21]} f5 {[%emt 0:00:23]} 36. Qb7 {[%emt 0:00:53]} Rb8
{[%emt 0:00:34]} 37. Qf3 {[%emt 0:00:11]} Nh4 {[%emt 0:00:05]} 38. Qd3 {
[%emt 0:00:46]} Qc6+ {[%emt 0:00:23]} 39. Kg1 {[%emt 0:00:00]} g4 {[%emt 0:00:
13]} 40. Qg3 {[%emt 0:00:32]} 1-0

[Event "23rd ETCC Women 2021"]
[Site "Catez"]
[Date "2021.11.12"]
[Round "1.7"]
[White "Mrvova, Alena"]
[Black "Melia, Salome"]
[Result "1-0"]
[ECO "C00"]
[WhiteElo "2174"]
[BlackElo "2371"]
[Annotator "NA"]
[PlyCount "113"]
[EventDate "2021.11.08"]
[EventType "team-tourn"]
[EventCountry "SLO"]
[SourceTitle "playchess.com"]
[Source "ChessBase"]
[SourceQuality "1"]
[WhiteTeam "Slovakia"]
[BlackTeam "Georgia"]
[WhiteTeamCountry "SVK"]
[BlackTeamCountry "GEO"]
[TimeControl "40/5400+30:1800+30"]

1. Nf3 {[%emt 0:00:17]} c5 {[%emt 0:01:11]} 2. g3 {[%emt 0:00:51]} d5 {[%emt 0:
00:30]} 3. Bg2 {[%emt 0:00:34]} Nf6 {[%emt 0:01:05]} 4. O-O {[%emt 0:01:00]} e6
{[%emt 0:00:35]} 5. d3 {[%emt 0:01:15]} Nc6 {[%emt 0:00:12]} 6. Re1 {[%emt 0:
01:21]} Be7 {[%emt 0:00:16]} 7. Nbd2 {[%emt 0:00:46]} O-O {[%emt 0:00:11]} 8.
e4 {[%emt 0:00:45]} Qc7 {[%emt 0:00:52]} 9. Qe2 {[%emt 0:00:54]} b5 {[%emt 0:
02:48]} 10. Nf1 {[%emt 0:01:55]} dxe4 {[%emt 0:03:23]} 11. dxe4 {[%emt 0:00:16]
} b4 {[%emt 0:00:36]} 12. c3 {[%emt 0:01:55]} a5 {[%emt 0:00:53]} 13. e5 {
[%emt 0:05:24]} Nd7 {[%emt 0:07:37]} 14. Bf4 {[%emt 0:05:16]} Bb7 {[%emt 0:05:
50]} 15. Ne3 {[%emt 0:06:33]} a4 {[%emt 0:04:32]} 16. a3 {[%emt 0:07:43]} bxc3
{[%emt 0:03:15]} 17. bxc3 {[%emt 0:00:21]} Rfd8 {[%emt 0:01:34]} 18. Qc2 {
[%emt 0:01:12]} Nf8 {[%emt 0:06:05]} 19. Nc4 {[%emt 0:03:05]} Na5 {[%emt 0:08:
18]} 20. Nxa5 {[%emt 0:02:17]} Rxa5 {[%emt 0:02:49]} 21. c4 {[%emt 0:00:14]}
Raa8 {[%emt 0:03:07]} 22. Bd2 {[%emt 0:01:45]} Bc6 {[%emt 0:06:36]} 23. Bc3 {
[%emt 0:02:38]} Rab8 {[%emt 0:00:25]} 24. Nd2 {[%emt 0:02:21]} Bxg2 {[%emt 0:
01:44]} 25. Kxg2 {[%emt 0:00:06]} Qc6+ {[%emt 0:01:46]} 26. Kg1 {[%emt 0:02:28]
} Qa6 {[%emt 0:13:36]} 27. h4 {[%emt 0:03:28]} Rb7 {[%emt 0:04:00]} 28. Rab1 {
[%emt 0:01:31]} Rbd7 {[%emt 0:10:12]} 29. Rb5 {[%emt 0:01:13]} Qc6 {[%emt 0:00:
21]} 30. Ne4 {[%emt 0:06:54]} Ra8 {[%emt 0:02:02]} 31. Reb1 {[%emt 0:02:36]}
Rda7 {[%emt 0:02:15]} 32. Rb6 {[%emt 0:03:31]} Qc7 {[%emt 0:00:31]} 33. Nd6 {
[%emt 0:05:01]} Bxd6 {[%emt 0:01:12]} 34. exd6 {[%emt 0:03:33]} Qd8 {[%emt 0:
00:12]} 35. Qe4 {[%emt 0:03:05]} Rc8 {[%emt 0:01:47]} 36. Rc6 {[%emt 0:07:55]}
Rxc6 {[%emt 0:05:27]} 37. Qxc6 {[%emt 0:00:05]} Nd7 {[%emt 0:00:20]} 38. Rb7 {
[%emt 0:01:22]} Rxb7 {[%emt 0:00:31]} 39. Qxb7 {[%emt 0:00:06]} f6 {[%emt 0:00:
44]} 40. Qc6 {[%emt 0:02:08]} h5 {[%emt 0:00:32]} 41. Qxa4 {[%emt 0:31:31]} Nb6
{[%emt 0:12:55]} 42. Ba5 {[%emt 0:00:00]} Qxd6 {[%emt 0:02:58]} 43. Qe8+ {
[%emt 0:00:00]} Kh7 {[%emt 0:00:03]} 44. Qxh5+ {[%emt 0:00:00]} Kg8 {[%emt 0:
00:03]} 45. Qe8+ {[%emt 0:00:00]} Kh7 {[%emt 0:00:02]} 46. Bxb6 {[%emt 0:00:00]
} Qxb6 {[%emt 0:00:04]} 47. Qb5 {[%emt 0:00:00]} Qd6 {[%emt 0:00:56]} 48. a4 {
[%emt 0:00:00]} f5 {[%emt 0:01:23]} 49. a5 {[%emt 0:00:00]} e5 {[%emt 0:14:13]}
50. Qe8 {[%emt 0:00:00]} Qd1+ {[%emt 0:01:15]} 51. Kg2 {[%emt 0:00:00]} e4 {
[%emt 0:01:09]} 52. Qe5 {[%emt 0:00:00]} Qf3+ {[%emt 0:01:00]} 53. Kg1 {
[%emt 0:00:00]} Qd1+ {[%emt 0:00:33]} 54. Kh2 {[%emt 0:00:00]} g6 {[%emt 0:00:
29]} 55. Qxc5 {[%emt 0:00:00]} Qd2 {[%emt 0:00:33]} 56. a6 {[%emt 0:00:00]} Kh6
{[%emt 0:00:29]} 57. Qe3+ {[%emt 0:00:00]} 1-0